[Event "DVM U10 2024"]
[Site "Duesseldorf"]
[Date "2024.12.29"]
[Round "7"]
[White "Aslanov, Kamran"]
[Black "Hübner, Jakob"]
[Result "0-1"]
[ECO "B44"]
[WhiteElo "1451"]
[BlackElo "1045"]
[Annotator "NA"]
[PlyCount "48"]
[EventDate "2024.12.23"]
[EventType "team-tourn"]
[EventRounds "7"]
[EventCountry "GER"]
[SourceTitle "playchess.com"]
[Source "ChessBase"]
[SourceQuality "1"]
[TimeControl "3300+5"]

1. e4 {[%emt 0:00:04]} c5 {[%emt 0:00:07]} 2. Nf3 {[%emt 0:00:05]} e6 {[%emt 0:00:08]} 3. d4 {[%emt 0:00:08]} cxd4 {[%emt 0:00:09]} 4. Nxd4 {[%emt 0:00:12]} Nc6 {[%emt 0:00:08]} 5. Nxc6 {[%emt 0:00:11]} bxc6 {[%emt 0:00:08]} 6. Nc3 {[%emt 0:00:36]} Qc7 {[%emt 0:00:08]} 7. Be2 {[%emt 0:05:33]} Nf6 {[%emt 0:00:23]} 8. Bg5 {[%emt 0:01:28]} Be7 {[%emt 0:00:15]} 9. Bxf6 {[%emt 0:08:50]} Bxf6 {[%emt 0:00:12]} 10. O-O {[%emt 0:00:20]} O-O {[%emt 0:00:12]} 11. Qd2 {[%emt 0:01:06]} d5 {[%emt 0:00:14]} 12. exd5 {[%emt 0:00:56]} exd5 {[%emt 0:00:25]} 13. Rad1 {[%emt 0:00:45]} Re8 {[%emt 0:00:43]} 14. Rfe1 {[%emt 0:04:27]} Qb6 {[%emt 0:01:33]} 15. Rb1 {[%emt 0:03:25]} Rb8 {[%emt 0:02:00]} 16. Bf3 {[%emt 0:04:47]} Ba6 {[%emt 0:00:39]} 17. Be2 {[%emt 0:03:31]} Bxe2 {[%emt 0:00:47]} 18. Rxe2 {[%emt 0:00:07]} Rxe2 {[%emt 0:00:17]} 19. Qxe2 {[%emt 0:00:07]} Bxc3 {[%emt 0:00:16]} 20. Qf3 {[%emt 0:01:13]} Bf6 {[%emt 0:00:35]} 21. g4 {[%emt 0:01:03]} Qc7 {[%emt 0:00:30]} 22. Re1 {[%emt 0:00:36]} h6 {[%emt 0:00:36]} 23. b3 {[%emt 0:00:18]} Qa5 {[%emt 0:00:39]} 24. Ra1 {[%emt 0:00:30]} Bxa1 {[%emt 0:00:16]} 0-1

[Event "DVM U10 2024"]
[Site "Duesseldorf"]
[Date "2024.12.29"]
[Round "7"]
[White "Essers, Mathilda Marie"]
[Black "Schubert, Anton"]
[Result "0-1"]
[ECO "D00"]
[WhiteElo "1435"]
[BlackElo "824"]
[Annotator "NA"]
[PlyCount "164"]
[EventDate "2024.12.23"]
[EventType "team-tourn"]
[EventRounds "7"]
[EventCountry "GER"]
[SourceTitle "playchess.com"]
[Source "ChessBase"]
[SourceQuality "1"]
[TimeControl "3300+5"]

1. d4 {[%emt 0:00:01]} d5 {[%emt 0:00:06]} 2. Nf3 {[%emt 0:00:05]} Bf5 {[%emt 0:00:12]} 3. c3 {[%emt 0:00:12]} e6 {[%emt 0:00:20]} 4. Bf4 {[%emt 0:00:27]} Nf6 {[%emt 0:00:49]} 5. e3 {[%emt 0:00:13]} c5 {[%emt 0:00:39]} 6. Nbd2 {[%emt 0:01:40]} Nc6 {[%emt 0:00:23]} 7. Be2 {[%emt 0:00:15]} Be7 {[%emt 0:00:26]} 8. O-O {[%emt 0:00:10]} O-O {[%emt 0:00:05]} 9. h3 {[%emt 0:00:18]} Qd7 {[%emt 0:03:22]} 10. Ne5 {[%emt 0:00:37]} Nxe5 {[%emt 0:00:29]} 11. Bxe5 {[%emt 0:00:07]} Ne4 {[%emt 0:01:08]} 12. Nxe4 {[%emt 0:00:27]} Bxe4 {[%emt 0:00:25]} 13. a3 {[%emt 0:01:59]} b6 {[%emt 0:01:51]} 14. b4 {[%emt 0:01:06]} Rfc8 {[%emt 0:01:56]} 15. Qd2 {[%emt 0:00:39]} h6 {[%emt 0:03:41]} 16. Rfc1 {[%emt 0:01:48]} Bd6 {[%emt 0:01:03]} 17. Bxd6 {[%emt 0:00:11]} Qxd6 {[%emt 0:00:13]} 18. bxc5 {[%emt 0:01:38]} bxc5 {[%emt 0:00:10]} 19. Bd3 {[%emt 0:00:25]} Bxd3 {[%emt 0:00:12]} 20. Qxd3 {[%emt 0:00:07]} Rab8 {[%emt 0:00:15]} 21. Rcb1 {[%emt 0:01:17]} c4 {[%emt 0:01:08]} 22. Qc2 {[%emt 0:02:55]} a6 {[%emt 0:02:48]} 23. Rxb8 {[%emt 0:00:38]} Rxb8 {[%emt 0:00:14]} 24. a4 {[%emt 0:00:13]} a5 {[%emt 0:00:10]} 25. Rb1 {[%emt 0:00:32]} h5 {[%emt 0:00:23]} 26. Rxb8+ {[%emt 0:00:30]} Qxb8 {[%emt 0:00:11]} 27. Qd1 {[%emt 0:01:35]} Qb3 {[%emt 0:00:27]} 28. Qa1 {[%emt 0:00:59]} Kh7 {[%emt 0:01:46]} 29. Kh2 {[%emt 0:00:38]} h4 {[%emt 0:01:06]} 30. g3 {[%emt 0:00:28]} hxg3+ {[%emt 0:00:19]} 31. Kxg3 {[%emt 0:00:20]} Kh6 {[%emt 0:00:53]} 32. f4 {[%emt 0:00:22]} Qc2 {[%emt 0:03:13]} 33. h4 {[%emt 0:00:28]} Qd2 {[%emt 0:02:41]} 34. Kf3 {[%emt 0:00:36]} Kh5 {[%emt 0:00:50]} 35. Qg1 {[%emt 0:01:19]} Kh6 {[%emt 0:01:20]} 36. Qa1 {[%emt 0:00:43]} Qd3 {[%emt 0:01:14]} 37. Qc1 {[%emt 0:01:00]} Kh5 {[%emt 0:00:33]} 38. Qg1 {[%emt 0:00:58]} Kh6 {[%emt 0:00:56]} 39. Qe1 {[%emt 0:00:10]} Qe4+ {[%emt 0:02:50]} 40. Kg3 {[%emt 0:00:27]} e5 {[%emt 0:02:38]} 41. fxe5 {[%emt 0:00:34]} Kh5 {[%emt 0:01:58]} 42. Kh3 {[%emt 0:00:11]} Qg4+ {[%emt 0:01:32]} 43. Kh2 {[%emt 0:00:12]} Qxh4+ {[%emt 0:00:45]} 44. Qxh4+ {[%emt 0:00:10]} Kxh4 {[%emt 0:00:27]} 45. Kg2 {[%emt 0:00:02]} g5 {[%emt 0:00:47]} 46. Kg1 {[%emt 0:00:20]} Kg4 {[%emt 0:00:46]} 47. Kg2 {[%emt 0:00:09]} Kf5 {[%emt 0:00:41]} 48. Kg3 {[%emt 0:00:21]} f6 {[%emt 0:00:44]} 49. exf6 {[%emt 0:00:13]} Kxf6 {[%emt 0:00:10]} 50. Kg4 {[%emt 0:00:00]} Kg6 {[%emt 0:00:43]} 51. Kf3 {[%emt 0:00:12]} Kf5 {[%emt 0:00:15]} 52. Kg3 {[%emt 0:00:11]} Ke4 {[%emt 0:00:46]} 53. Kf2 {[%emt 0:00:07]} g4 {[%emt 0:00:19]} 54. Kg3 {[%emt 0:00:22]} Kxe3 {[%emt 0:00:08]} 55. Kxg4 {[%emt 0:00:06]} Kd3 {[%emt 0:00:30]} 56. Kf5 {[%emt 0:00:04]} Kxc3 {[%emt 0:00:16]} 57. Ke5 {[%emt 0:00:04]} Kd3 {[%emt 0:00:13]} 58. Kxd5 {[%emt 0:00:05]} c3 {[%emt 0:00:11]} 59. Ke5 {[%emt 0:00:06]} c2 {[%emt 0:00:09]} 60. d5 {[%emt 0:00:04]} c1=Q {[%emt 0:00:22]} 61. d6 {[%emt 0:00:10]} Qc5+ {[%emt 0:00:15]} 62. Ke6 {[%emt 0:00:11]} Qc8+ {[%emt 0:00:06]} 63. Ke7 {[%emt 0:00:14]} Kd4 {[%emt 0:00:08]} 64. d7 {[%emt 0:00:08]} Qc7 {[%emt 0:00:02]} 65. Ke8 {[%emt 0:00:15]} Qc6 {[%emt 0:00:06]} 66. Ke7 {[%emt 0:00:06]} Qa8 {[%emt 0:00:13]} 67. Ke6 {[%emt 0:00:28]} Qd8 {[%emt 0:00:07]} 68. Kd6 {[%emt 0:00:10]} Kc4 {[%emt 0:00:01]} 69. Ke6 {[%emt 0:00:18]} Kb4 {[%emt 0:00:03]} 70. Kd6 {[%emt 0:00:06]} Kxa4 {[%emt 0:00:03]} 71. Kc6 {[%emt 0:00:05]} Kb4 {[%emt 0:00:03]} 72. Kd6 {[%emt 0:00:10]} a4 {[%emt 0:00:01]} 73. Ke6 {[%emt 0:00:09]} a3 {[%emt 0:00:04]} 74. Kd6 {[%emt 0:00:06]} a2 {[%emt 0:00:02]} 75. Kc6 {[%emt 0:00:17]} a1=Q {[%emt 0:00:16]} 76. Kd6 {[%emt 0:00:18]} Qd1+ {[%emt 0:00:00]} 77. Ke5 {[%emt 0:00:07]} Q8xd7 {[%emt 0:00:00]} 78. Ke4 {[%emt 0:00:09]} Qe7+ {[%emt 0:00:03]} 79. Kf4 {[%emt 0:00:24]} Qf1+ {[%emt 0:00:03]} 80. Kg3 {[%emt 0:00:14]} Qg7+ {[%emt 0:00:02]} 81. Kh2 {[%emt 0:00:18]} Qff8 {[%emt 0:00:05]} 82. Kh3 {[%emt 0:00:13]} Qfh8# {[%emt 0:00:07]} 0-1

[Event "DVM U10 2024"]
[Site "Duesseldorf"]
[Date "2024.12.29"]
[Round "7"]
[White "Lüttgen, Jona"]
[Black "Wilting, Oskar"]
[Result "1/2-1/2"]
[ECO "B41"]
[WhiteElo "1412"]
[BlackElo "1454"]
[Annotator "NA"]
[PlyCount "78"]
[EventDate "2024.12.23"]
[EventType "team-tourn"]
[EventRounds "7"]
[EventCountry "GER"]
[SourceTitle "playchess.com"]
[Source "ChessBase"]
[SourceQuality "1"]
[TimeControl "3300+5"]

1. e4 {[%emt 0:00:01]} c5 {[%emt 0:00:07]} 2. Nf3 {[%emt 0:00:03]} e6 {[%emt 0:00:09]} 3. Be2 {[%emt 0:00:04]} a6 {[%emt 0:00:18]} 4. c4 {[%emt 0:00:36]} Nc6 {[%emt 0:00:43]} 5. d4 {[%emt 0:00:28]} cxd4 {[%emt 0:00:34]} 6. Nxd4 {[%emt 0:00:23]} Qc7 {[%emt 0:00:26]} 7. O-O {[%emt 0:00:41]} Nf6 {[%emt 0:00:55]} 8. Nc3 {[%emt 0:01:31]} b6 {[%emt 0:01:44]} 9. Be3 {[%emt 0:01:14]} Bb7 {[%emt 0:01:00]} 10. Na4 {[%emt 0:03:20]} Nxe4 {[%emt 0:02:54]} 11. Bf3 {[%emt 0:08:00]} Nxd4 {[%emt 0:06:43]} 12. Qxd4 {[%emt 0:03:16]} Nc5 {[%emt 0:02:21]} 13. Bf4 {[%emt 0:05:17]} d6 {[%emt 0:02:01]} 14. Bxb7 {[%emt 0:00:56]} Qxb7 {[%emt 0:03:12]} 15. Nxc5 {[%emt 0:00:35]} bxc5 {[%emt 0:05:10]} 16. Qc3 {[%emt 0:00:47]} e5 {[%emt 0:01:30]} 17. Rfe1 {[%emt 0:01:04]} Be7 {[%emt 0:00:27]} 18. Bd2 {[%emt 0:00:49]} O-O {[%emt 0:01:21]} 19. Qg3 {[%emt 0:01:46]} Qxb2 {[%emt 0:01:10]} 20. Bh6 {[%emt 0:01:41]} Bf6 {[%emt 0:00:50]} 21. Rad1 {[%emt 0:01:25]} Rfd8 {[%emt 0:00:59]} 22. Re4 {[%emt 0:01:58]} Qc2 {[%emt 0:01:45]} 23. Rde1 {[%emt 0:01:04]} g6 {[%emt 0:00:39]} 24. Bg5 {[%emt 0:02:20]} Bxg5 {[%emt 0:05:01]} 25. Qxg5 {[%emt 0:00:14]} Rdb8 {[%emt 0:00:48]} 26. f3 {[%emt 0:03:36]} Rb1 {[%emt 0:00:59]} 27. Qh6 {[%emt 0:01:46]} Qxe4 {[%emt 0:01:31]} 28. fxe4 {[%emt 0:00:21]} Rxe1+ {[%emt 0:00:07]} 29. Kf2 {[%emt 0:00:07]} Rxe4 {[%emt 0:00:10]} 30. Qc1 {[%emt 0:00:25]} Rf4+ {[%emt 0:00:17]} 31. Ke2 {[%emt 0:00:46]} Rd4 {[%emt 0:00:21]} 32. Qc3 {[%emt 0:01:12]} e4 {[%emt 0:00:27]} 33. Qb3 {[%emt 0:00:36]} Re8 {[%emt 0:00:26]} 34. Qa4 {[%emt 0:00:25]} Kf8 {[%emt 0:00:19]} 35. Qd7 {[%emt 0:00:48]} e3 {[%emt 0:00:16]} 36. Qh3 {[%emt 0:00:22]} Rd2+ {[%emt 0:01:55]} 37. Ke1 {[%emt 0:00:13]} Kg7 {[%emt 0:01:51]} 38. Qd7 {[%emt 0:00:35]} Re6 {[%emt 0:00:57]} 39. a4 {[%emt 0:01:11]} Rxg2 {[%emt 0:00:30]} 1/2-1/2

[Event "DVM U10 2024"]
[Site "Duesseldorf"]
[Date "2024.12.29"]
[Round "7"]
[White "Fabritius, Wolf"]
[Black "Barsov, Mikhail"]
[Result "1-0"]
[ECO "E14"]
[WhiteElo "1405"]
[BlackElo "1737"]
[Annotator "NA"]
[PlyCount "159"]
[EventDate "2024.12.23"]
[EventType "team-tourn"]
[EventRounds "7"]
[EventCountry "GER"]
[SourceTitle "playchess.com"]
[Source "ChessBase"]
[SourceQuality "1"]
[TimeControl "3300+5"]

1. d4 {[%emt 0:00:02]} d5 {[%emt 0:00:12]} 2. Nf3 {[%emt 0:00:05]} Nf6 {[%emt 0:00:05]} 3. c4 {[%emt 0:00:03]} e6 {[%emt 0:00:03]} 4. e3 {[%emt 0:00:05]} Be7 {[%emt 0:00:08]} 5. b3 {[%emt 0:00:05]} O-O {[%emt 0:00:20]} 6. Bd3 {[%emt 0:00:10]} b6 {[%emt 0:01:17]} 7. O-O {[%emt 0:00:30]} Bb7 {[%emt 0:00:06]} 8. Bb2 {[%emt 0:00:05]} Nbd7 {[%emt 0:00:25]} 9. Nbd2 {[%emt 0:00:13]} c5 {[%emt 0:00:31]} 10. cxd5 {[%emt 0:00:18]} Nxd5 {[%emt 0:01:16]} 11. Qe2 {[%emt 0:00:13]} cxd4 {[%emt 0:01:03]} 12. Nxd4 {[%emt 0:00:18]} Nc5 {[%emt 0:00:35]} 13. Bc2 {[%emt 0:01:22]} Bf6 {[%emt 0:06:18]} 14. Rac1 {[%emt 0:01:02]} Rc8 {[%emt 0:03:37]} 15. Qg4 {[%emt 0:01:31]} a5 {[%emt 0:12:01]} 16. a3 {[%emt 0:02:21]} Ba6 {[%emt 0:03:14]} 17. Rfd1 {[%emt 0:00:35]} Bd3 {[%emt 0:05:05]} 18. Bxd3 {[%emt 0:01:53]} Nxd3 {[%emt 0:00:15]} 19. Rxc8 {[%emt 0:01:09]} Qxc8 {[%emt 0:00:16]} 20. Ba1 {[%emt 0:00:15]} Ne5 {[%emt 0:06:17]} 21. Qg3 {[%emt 0:01:42]} Ng6 {[%emt 0:01:07]} 22. N2f3 {[%emt 0:01:36]} Qc5 {[%emt 0:02:01]} 23. Bb2 {[%emt 0:01:09]} Rc8 {[%emt 0:00:59]} 24. h3 {[%emt 0:01:40]} Qe7 {[%emt 0:03:17]} 25. Qg4 {[%emt 0:03:44]} Rc5 {[%emt 0:01:42]} 26. a4 {[%emt 0:00:58]} Nb4 {[%emt 0:01:38]} 27. Ba3 {[%emt 0:00:51]} Qc7 {[%emt 0:00:19]} 28. Nb5 {[%emt 0:00:58]} Qc8 {[%emt 0:00:33]} 29. Bxb4 {[%emt 0:00:31]} axb4 {[%emt 0:00:04]} 30. Qxb4 {[%emt 0:00:17]} Be7 {[%emt 0:00:38]} 31. Qe1 {[%emt 0:01:10]} h6 {[%emt 0:00:12]} 32. Nfd4 {[%emt 0:01:37]} e5 {[%emt 0:00:15]} 33. Ne2 {[%emt 0:00:26]} Bf6 {[%emt 0:00:17]} 34. Nec3 {[%emt 0:00:39]} Qf5 {[%emt 0:00:40]} 35. Nd6 {[%emt 0:02:03]} Qc2 {[%emt 0:00:06]} 36. Nce4 {[%emt 0:00:49]} Rc6 {[%emt 0:00:07]} 37. Rb1 {[%emt 0:02:29]} Be7 {[%emt 0:00:06]} 38. Qd1 {[%emt 0:00:47]} Qxd1+ {[%emt 0:00:21]} 39. Rxd1 {[%emt 0:00:05]} Bxd6 {[%emt 0:00:05]} 40. Nxd6 {[%emt 0:00:19]} Rc3 {[%emt 0:00:02]} 41. Rb1 {[%emt 0:00:47]} Kf8 {[%emt 0:00:06]} 42. Nc4 {[%emt 0:00:08]} b5 {[%emt 0:00:16]} 43. axb5 {[%emt 0:00:12]} Ne7 {[%emt 0:00:03]} 44. Nxe5 {[%emt 0:00:18]} Nc8 {[%emt 0:00:21]} 45. Nc4 {[%emt 0:00:18]} Ke7 {[%emt 0:00:08]} 46. Kf1 {[%emt 0:00:06]} Kd7 {[%emt 0:00:09]} 47. Ke1 {[%emt 0:00:43]} Rc2 {[%emt 0:00:02]} 48. Rb2 {[%emt 0:00:16]} Rc1+ {[%emt 0:00:00]} 49. Ke2 {[%emt 0:00:17]} Ra1 {[%emt 0:00:06]} 50. b6 {[%emt 0:00:37]} Kc6 {[%emt 0:00:01]} 51. Ne5+ {[%emt 0:00:07]} Kxb6 {[%emt 0:00:03]} 52. Nxf7 {[%emt 0:00:09]} Rg1 {[%emt 0:00:01]} 53. Kf3 {[%emt 0:00:12]} Ne7 {[%emt 0:00:05]} 54. e4 {[%emt 0:01:12]} Ng6 {[%emt 0:00:10]} 55. g3 {[%emt 0:00:10]} Re1 {[%emt 0:00:03]} 56. Re2 {[%emt 0:00:45]} Rb1 {[%emt 0:00:02]} 57. Re3 {[%emt 0:00:09]} Ne7 {[%emt 0:00:01]} 58. Nd6 {[%emt 0:00:49]} Kc6 {[%emt 0:00:06]} 59. Nf5 {[%emt 0:00:14]} Nxf5 {[%emt 0:00:06]} 60. exf5 {[%emt 0:00:05]} Kd6 {[%emt 0:00:08]} 61. Kg4 {[%emt 0:00:11]} Rf1 {[%emt 0:00:05]} 62. f4 {[%emt 0:00:18]} Rd1 {[%emt 0:00:08]} 63. Kh5 {[%emt 0:00:15]} Rh1 {[%emt 0:00:04]} 64. h4 {[%emt 0:00:07]} Rd1 {[%emt 0:00:04]} 65. Kg6 {[%emt 0:00:09]} Rd5 {[%emt 0:00:05]} 66. Re6+ {[%emt 0:00:32]} Kd7 {[%emt 0:00:02]} 67. Kxg7 {[%emt 0:00:21]} Rxf5 {[%emt 0:00:03]} 68. Rxh6 {[%emt 0:00:24]} Rb5 {[%emt 0:00:02]} 69. Kf6 {[%emt 0:00:53]} Rxb3 {[%emt 0:00:05]} 70. g4 {[%emt 0:00:07]} Rb4 {[%emt 0:00:02]} 71. Kg5 {[%emt 0:00:08]} Rb5+ {[%emt 0:00:03]} 72. f5 {[%emt 0:00:07]} Ke7 {[%emt 0:00:02]} 73. Re6+ {[%emt 0:00:20]} Kf7 {[%emt 0:00:02]} 74. h5 {[%emt 0:00:10]} Ra5 {[%emt 0:00:10]} 75. h6 {[%emt 0:00:20]} Kg8 {[%emt 0:00:01]} 76. Kg6 {[%emt 0:00:12]} Ra8 {[%emt 0:00:03]} 77. f6 {[%emt 0:00:18]} Rf8 {[%emt 0:00:04]} 78. f7+ {[%emt 0:00:38]} Kh8 {[%emt 0:00:30]} 79. Re8 {[%emt 0:00:12]} Rxe8 {[%emt 0:00:13]} 80. fxe8=Q# {[%emt 0:00:09]} 1-0

[Event "DVM U10 2024"]
[Site "Duesseldorf"]
[Date "2024.12.29"]
[Round "7"]
[White "Glaser-Gallion, Ludwig"]
[Black "Wittenberger, Henri"]
[Result "1-0"]
[ECO "B72"]
[WhiteElo "1358"]
[BlackElo "1421"]
[Annotator "NA"]
[PlyCount "97"]
[EventDate "2024.12.23"]
[EventType "team-tourn"]
[EventRounds "7"]
[EventCountry "GER"]
[SourceTitle "playchess.com"]
[Source "ChessBase"]
[SourceQuality "1"]
[TimeControl "3300+5"]

1. e4 {[%emt 0:00:03]} c5 {[%emt 0:00:14]} 2. Nf3 {[%emt 0:00:09]} d6 {[%emt 0:00:09]} 3. d4 {[%emt 0:00:04]} cxd4 {[%emt 0:00:08]} 4. Nxd4 {[%emt 0:00:06]} Nf6 {[%emt 0:00:11]} 5. Nc3 {[%emt 0:00:07]} g6 {[%emt 0:00:10]} 6. Be3 {[%emt 0:00:10]} Bg7 {[%emt 0:00:16]} 7. Bc4 {[%emt 0:00:35]} O-O {[%emt 0:00:19]} 8. O-O {[%emt 0:00:13]} Nc6 {[%emt 0:00:49]} 9. Nxc6 {[%emt 0:00:45]} bxc6 {[%emt 0:00:14]} 10. Bd4 {[%emt 0:00:25]} Re8 {[%emt 0:03:17]} 11. Re1 {[%emt 0:02:01]} c5 {[%emt 0:03:10]} 12. Be3 {[%emt 0:02:52]} Rb8 {[%emt 0:05:16]} 13. Rb1 {[%emt 0:02:14]} a6 {[%emt 0:07:42]} 14. e5 {[%emt 0:03:06]} Ng4 {[%emt 0:08:27]} 15. e6 {[%emt 0:04:19]} Bxe6 {[%emt 0:01:17]} 16. Bxe6 {[%emt 0:00:18]} Nxe3 {[%emt 0:00:26]} 17. Bxf7+ {[%emt 0:00:09]} Kxf7 {[%emt 0:00:36]} 18. Rxe3 {[%emt 0:00:10]} Kg8 {[%emt 0:00:26]} 19. Qd5+ {[%emt 0:03:45]} Kh8 {[%emt 0:00:21]} 20. Ne4 {[%emt 0:01:15]} e6 {[%emt 0:06:03]} 21. Qxd6 {[%emt 0:02:04]} Qxd6 {[%emt 0:00:10]} 22. Nxd6 {[%emt 0:00:08]} Re7 {[%emt 0:00:49]} 23. Nc4 {[%emt 0:03:54]} Rd7 {[%emt 0:09:37]} 24. g3 {[%emt 0:00:18]} Rbd8 {[%emt 0:03:41]} 25. Rxe6 {[%emt 0:01:28]} Rd1+ {[%emt 0:00:03]} 26. Rxd1 {[%emt 0:00:13]} Rxd1+ {[%emt 0:00:01]} 27. Kg2 {[%emt 0:00:12]} Bd4 {[%emt 0:01:05]} 28. c3 {[%emt 0:00:20]} Rc1 {[%emt 0:00:29]} 29. Na3 {[%emt 0:00:49]} Bxc3 {[%emt 0:00:31]} 30. bxc3 {[%emt 0:00:21]} Rxc3 {[%emt 0:00:02]} 31. Re3 {[%emt 0:00:15]} Rc1 {[%emt 0:00:11]} 32. Kf3 {[%emt 0:03:32]} Rd1 {[%emt 0:00:30]} 33. Rc3 {[%emt 0:00:33]} Rd6 {[%emt 0:00:37]} 34. Nc4 {[%emt 0:01:17]} Rf6+ {[%emt 0:00:17]} 35. Ke2 {[%emt 0:00:15]} Rf7 {[%emt 0:00:10]} 36. Ne3 {[%emt 0:00:25]} Rc7 {[%emt 0:00:07]} 37. Kd2 {[%emt 0:00:50]} Rf7 {[%emt 0:00:11]} 38. f4 {[%emt 0:00:09]} Rd7+ {[%emt 0:00:01]} 39. Kc2 {[%emt 0:00:09]} Rc7 {[%emt 0:00:03]} 40. Nd5 {[%emt 0:00:15]} Rc6 {[%emt 0:00:00]} 41. Kb3 {[%emt 0:00:24]} Rc8 {[%emt 0:00:15]} 42. Kc4 {[%emt 0:00:17]} Rc6 {[%emt 0:00:04]} 43. Re3 {[%emt 0:00:16]} Kg7 {[%emt 0:00:06]} 44. Re7+ {[%emt 0:00:20]} Kh6 {[%emt 0:00:08]} 45. g4 {[%emt 0:00:25]} a5 {[%emt 0:00:01]} 46. g5+ {[%emt 0:00:37]} Kh5 {[%emt 0:00:01]} 47. Ne3 {[%emt 0:00:07]} h6 {[%emt 0:00:08]} 48. Rh7 {[%emt 0:00:12]} Rc7 {[%emt 0:00:09]} 49. Rxh6# {[%emt 0:00:08]} 1-0

[Event "DVM U10 2024"]
[Site "Duesseldorf"]
[Date "2024.12.29"]
[Round "7"]
[White "Brucker, Oscar"]
[Black "Glavev, Victor"]
[Result "1-0"]
[ECO "D02"]
[WhiteElo "1291"]
[BlackElo "1443"]
[Annotator "NA"]
[PlyCount "61"]
[EventDate "2024.12.23"]
[EventType "team-tourn"]
[EventRounds "7"]
[EventCountry "GER"]
[SourceTitle "playchess.com"]
[Source "ChessBase"]
[SourceQuality "1"]
[TimeControl "3300+5"]

1. d4 {[%emt 0:00:04]} d5 {[%emt 0:00:02]} 2. Bf4 {[%emt 0:00:14]} Nf6 {[%emt 0:00:06]} 3. Nf3 {[%emt 0:00:10]} e6 {[%emt 0:00:31]} 4. a3 {[%emt 0:00:22]} a6 {[%emt 0:00:19]} 5. Nc3 {[%emt 0:00:05]} Bd6 {[%emt 0:00:07]} 6. Bxd6 {[%emt 0:00:26]} Qxd6 {[%emt 0:00:45]} 7. e3 {[%emt 0:00:11]} O-O {[%emt 0:06:12]} 8. Bd3 {[%emt 0:00:51]} b6 {[%emt 0:06:05]} 9. e4 {[%emt 0:01:18]} Nxe4 {[%emt 0:02:13]} 10. Nxe4 {[%emt 0:00:31]} dxe4 {[%emt 0:00:13]} 11. Bxe4 {[%emt 0:00:07]} Ra7 {[%emt 0:01:31]} 12. Qd3 {[%emt 0:02:02]} f5 {[%emt 0:00:52]} 13. Bxf5 {[%emt 0:08:29]} exf5 {[%emt 0:00:32]} 14. O-O {[%emt 0:01:09]} Bb7 {[%emt 0:02:16]} 15. Ne5 {[%emt 0:01:45]} Nc6 {[%emt 0:06:27]} 16. Qc4+ {[%emt 0:01:10]} Kh8 {[%emt 0:01:38]} 17. Nf7+ {[%emt 0:00:13]} Rxf7 {[%emt 0:00:03]} 18. Qxf7 {[%emt 0:00:11]} Ra8 {[%emt 0:00:16]} 19. Rfe1 {[%emt 0:00:47]} h6 {[%emt 0:01:48]} 20. c3 {[%emt 0:04:46]} Na5 {[%emt 0:01:06]} 21. b4 {[%emt 0:01:19]} Qc6 {[%emt 0:00:54]} 22. d5 {[%emt 0:00:43]} Qc4 {[%emt 0:00:26]} 23. bxa5 {[%emt 0:02:22]} bxa5 {[%emt 0:00:13]} 24. Re7 {[%emt 0:01:04]} Qxc3 {[%emt 0:00:22]} 25. Rae1 {[%emt 0:01:29]} a4 {[%emt 0:12:59]} 26. Re8+ {[%emt 0:02:02]} Kh7 {[%emt 0:00:13]} 27. Qxf5+ {[%emt 0:00:20]} g6 {[%emt 0:00:46]} 28. R1e7+ {[%emt 0:00:29]} Qg7 {[%emt 0:00:09]} 29. Rxg7+ {[%emt 0:01:33]} Kxg7 {[%emt 0:00:24]} 30. Qf8+ {[%emt 0:00:15]} Kh7 {[%emt 0:00:02]} 31. Qh8# {[%emt 0:00:05]} 1-0

[Event "DVM U10 2024"]
[Site "Duesseldorf"]
[Date "2024.12.29"]
[Round "7"]
[White "Götz, Georg"]
[Black "Jiang, Lucas"]
[Result "0-1"]
[ECO "C50"]
[WhiteElo "1284"]
[BlackElo "2261"]
[Annotator "ChessBase"]
[PlyCount "128"]
[EventDate "2024.12.23"]
[EventType "team-tourn"]
[EventRounds "7"]
[EventCountry "GER"]
[SourceTitle "playchess.com"]
[Source "ChessBase"]
[SourceQuality "1"]
[TimeControl "3300+5"]

1. e4 {[%emt 0:00:02]} e5 {[%emt 0:00:13]} 2. Nf3 {[%emt 0:00:10]} Nc6 {[%emt 0:00:18]} 3. Bc4 {[%emt 0:00:32]} Bc5 {[%emt 0:00:20]} 4. d3 {[%emt 0:00:12]} Nf6 {[%emt 0:00:21]} 5. Ng5 {[%emt 0:01:21]} O-O {[%emt 0:00:41]} 6. Nxf7 {[%emt 0:00:41]} Rxf7 {[%emt 0:00:16]} 7. Bxf7+ {[%emt 0:00:12]} Kxf7 {[%emt 0:00:10]} 8. Be3 {[%emt 0:01:15]} Bb6 {[%emt 0:00:15]} 9. Nc3 {[%emt 0:00:53]} d6 {[%emt 0:00:11]} 10. h3 {[%emt 0:01:00]} Kg8 {[%emt 0:00:14]} 11. Bxb6 {[%emt 0:01:03]} axb6 {[%emt 0:00:35]} 12. Ne2 {[%emt 0:00:40]} Bd7 {[%emt 0:00:54]} 13. c3 {[%emt 0:00:18]} Qe7 {[%emt 0:00:37]} 14. Ng3 {[%emt 0:00:30]} Rf8 {[%emt 0:01:22]} 15. O-O {[%emt 0:00:27]} Qf7 {[%emt 0:00:45]} 16. f4 {[%emt 0:00:51]} Qg6 {[%emt 0:01:06]} 17. Kh2 {[%emt 0:02:06]} Qh6 {[%emt 0:03:40]} 18. f5 {[%emt 0:01:28]} d5 {[%emt 0:01:41]} 19. exd5 {[%emt 0:02:01]} Nxd5 {[%emt 0:00:16]} 20. Qb3 {[%emt 0:01:10]} Qd6 {[%emt 0:01:19]} 21. Ne4 {[%emt 0:04:10]} Na5 {[%emt 0:00:31]} 22. Nxd6 {[%emt 0:00:53]} Nxb3 {[%emt 0:00:16]} 23. axb3 {[%emt 0:01:26]} cxd6 {[%emt 0:00:12]} 24. g4 {[%emt 0:00:46]} h5 {[%emt 0:00:39]} 25. Kg3 {[%emt 0:01:47]} hxg4 {[%emt 0:02:08]} 26. hxg4 {[%emt 0:00:17]} Nf4 {[%emt 0:01:38]} 27. d4 {[%emt 0:03:58]} g6 {[%emt 0:02:16]} 28. dxe5 {[%emt 0:02:10]} dxe5 {[%emt 0:00:22]} 29. fxg6 {[%emt 0:01:26]} Nxg6 {[%emt 0:00:12]} 30. Rxf8+ {[%emt 0:01:18]} Kxf8 {[%emt 0:00:37]} 31. Re1 {[%emt 0:01:13]} Ke7 {[%emt 0:00:10]} 32. g5 {[%emt 0:01:40]} Bc6 {[%emt 0:03:38]} 33. c4 {[%emt 0:00:52]} Ke6 {[%emt 0:00:57]} 34. Rf1 {[%emt 0:01:22]} Nf4 {[%emt 0:00:45]} 35. Rxf4 {[%emt 0:00:18]} exf4+ {[%emt 0:00:17]} 36. Kxf4 {[%emt 0:00:32]} Kf7 {[%emt 0:00:12]} 37. Ke5 {[%emt 0:00:17]} b5 {[%emt 0:00:53]} 38. cxb5 {[%emt 0:00:17]} Bxb5 {[%emt 0:00:07]} 39. Kd6 {[%emt 0:00:11]} Kg6 {[%emt 0:00:22]} 40. Kc5 {[%emt 0:00:50]} Bc6 {[%emt 0:00:09]} 41. b4 {[%emt 0:00:06]} Kxg5 {[%emt 0:00:23]} 42. Kb6 {[%emt 0:00:20]} Kf5 {[%emt 0:00:06]} 43. b5 {[%emt 0:00:17]} Bh1 {[%emt 0:00:12]} 44. b4 {[%emt 0:01:10]} Ke5 {[%emt 0:00:08]} 45. Kc5 {[%emt 0:00:22]} Bd5 {[%emt 0:00:20]} 46. b6 {[%emt 0:01:27]} Be6 {[%emt 0:01:02]} 47. b5 {[%emt 0:00:23]} Bd7 {[%emt 0:00:27]} 48. Kb4 {[%emt 0:00:23]} Kd4 {[%emt 0:00:15]} 49. Ka5 {[%emt 0:00:17]} Kc5 {[%emt 0:00:10]} 50. Ka4 {[%emt 0:00:39]} Kxb6 {[%emt 0:00:16]} 51. Kb4 {[%emt 0:00:10]} Bxb5 {[%emt 0:00:09]} 52. Kc3 {[%emt 0:00:15]} Kc5 {[%emt 0:00:12]} 53. Kb3 {[%emt 0:00:50]} Bd3 54. Kc3 {[%emt 0:00:00]} Kb5 {[%emt 0:00:29]} 55. Kxd3 {[%emt 0:00:01]} Ka4 {[%emt 0:00:45]} 56. Kc2 {[%emt 0:00:14]} Ka3 {[%emt 0:00:16]} 57. Kb1 {[%emt 0:00:17]} b5 {[%emt 0:00:22]} 58. Ka1 {[%emt 0:00:14]} Kb3 {[%emt 0:01:12]} 59. Kb1 b4 {[%emt 0:00:00]} 60. Ka1 {[%emt 0:00:31]} Kc2 {[%emt 0:00:00]} 61. Ka2 {[%emt 0:00:06]} b3+ {[%emt 0:00:16]} 62. Ka1 {[%emt 0:00:17]} b2+ {[%emt 0:01:01]} 63. Ka2 {[%emt 0:00:03]} b1=Q+ {[%emt 0:00:28]} 64. Ka3 {[%emt 0:00:08]} Qb3# {[%emt 0:00:09]} 0-1